Workbook

Sheet Лист1
C3: Подготовлено редакцией Правовой платформы «Бизнес-Инфо» (ООО «Профессиональные правовые системы»)
C5: Динамика структуры бухгалтерского баланса
E6: ООО «ПромСервис»
E7: (наименование субъекта хозяйствования)
F8: на начало и конец | H8: 2021 | I8: года
C10: Порядковый номер и наименование раздела бухгалтерского баланса | G10: Итог раздела и его доля в итоге бухгалтерского баланса, % | K10: Изменение в тыс.руб. и %
G11: на начало года | I11: на конец года
C12: Итог бухгалтерского баланса, тыс.руб. | G12: 2,067.00 | I12: 3,690.00 | K12: =I12-G12 -> 1,623.00
C13: Раздел I. Долгосрочные активы | F13: итог, тыс.руб. | G13: 115.00 | I13: 114.00 | K13: -1.00
F14: доля, % | G14: =ROUND(100*G13/G$12,2) -> 5.56 | I14: =ROUND(100*I13/I$12,2) -> 3.09 | K14: -2.47
C15: Раздел II. Краткосрочные активы | F15: итог, тыс.руб. | G15: 1,952.00 | I15: 3,576.00 | K15: 1,624.00
F16: доля, % | G16: =ROUND(100*G15/G$12,2) -> 94.44 | I16: =ROUND(100*I15/I$12,2) -> 96.91 | K16: 2.47
C17: Раздел III. Собственный капитал | F17: итог, тыс.руб. | G17: 981.00 | I17: 2,877.00 | K17: 1,896.00
F18: доля, % | G18: =ROUND(100*G17/G$12,2) -> 47.46 | I18: =ROUND(100*I17/I$12,2) -> 77.97 | K18: 30.51
C19: Раздел IV. Долгосрочные обязательства | F19: итог, тыс.руб. | G19: 270.00 | I19: 0.00 | K19: -270.00
F20: доля, % | G20: =ROUND(100*G19/G$12,2) -> 13.06 | I20: =ROUND(100*I19/I$12,2) -> 0.00 | K20: -13.06
C21: Раздел V. Краткосрочные обязательства | F21: итог, тыс.руб. | G21: 816.00 | I21: 813.00 | K21: -3.00
F22: доля, % | G22: =ROUND(100*G21/G$12,2) -> 39.48 | I22: =ROUND(100*I21/I$12,2) -> 22.03 | K22: -17.45
